bitfinex-derivatives/quotes_ETHF0:USTF0_20210402
["timestamp","ask_amount","ask_price","bid_price","bid_amount"]
[1617332681435,0.29385697,2008.6,2007.9,1.29931615]
[1617332681436,0.93058782,2008.6,2007.9,1.29931615]
[1617332682035,2.84633782,2008.7,2007.9,1.29931615]
[1617332683843,1.1632049,2008.8,2008.1,2.90695]
[1617332684245,1.16324392,2008.7,2008.1,2.90695]
[1617332684442,2.73814392,2008.7,2008.1,2.90695]
[1617332684843,1.5749,2008.7,2008.1,2.90695]
[1617332685045,2.7381519,2008.7,2008.1,2.90695]
[1617332685544,1.5749,2008.7,2008.1,2.90695]
[1617332685744,2.90695,2008.2,2008.1,2.90695]
[1617332687145,1.91575,2008.2,2008.1,2.90695]
[1617332687546,3.65395824,2008.8,2008.1,2.90695]
[1617332687946,1.16246668,2008.8,2008.6,2.90695]
[1617332688146,1.16232949,2009.0,2008.6,3.97305]
[1617332688547,1.1621747,2009.2,2008.6,3.97305]
[1617332688948,1.1620954,2009.3,2008.6,3.97305]
[1617332689347,1.16214611,2009.4,2008.6,3.97305]
[1617332689847,1.16214611,2009.4,2009.3,2.90695]
[1617332690047,2.03666106,2009.6,2009.3,4.43665]
[1617332690448,4.94351511,2009.7,2009.3,4.43665]
[1617332690648,2.90695,2009.7,2009.3,4.43665]
[1617332690848,2.03646628,2009.8,2009.3,4.43665]
[1617332691049,2.03645118,2009.9,2009.3,4.43665]
[1617332691751,2.03640845,2009.8,2009.3,4.43665]
[1617332691950,2.03640845,2009.8,2009.7,2.90695]
[1617332692151,5.81485993,2010.0,2009.7,2.90695]
[1617332692152,4.07163056,2009.9,2009.7,2.90695]
[1617332692553,2.90893103,2009.8,2009.7,2.90695]
[1617332692954,2.03713867,2009.8,2009.7,2.90695]
[1617332693254,5.81590266,2010.0,2009.7,2.90695]
[1617332693255,2.90895168,2009.9,2009.7,2.90695]
[1617332693656,2.90900439,2009.8,2009.7,2.90695]
[1617332694057,2.03714291,2009.8,2009.7,2.90695]
[1617332694657,2.90908371,2009.9,2008.7,2.0]
[1617332695057,2.03725716,2009.6,2008.7,2.0]
[1617332695856,2.03725716,2009.6,2009.2,2.90695]
[1617332696057,2.03732598,2009.5,2008.7,2.0]
[1617332696859,2.03566471,2009.6,2008.7,2.0]
[1617332697861,2.03566471,2009.6,2009.3,2.90695]
[1617332698162,2.03566471,2009.6,2008.7,2.0]
[1617332698762,3.49066471,2009.6,2008.6,2.584]
[1617332698963,2.03570109,2009.5,2008.6,2.584]
[1617332699362,2.03577298,2009.4,2008.6,2.584]
[1617332699663,2.90732279,2008.8,2008.6,2.584]
[1617332699862,2.90732279,2008.8,2008.7,2.90695]
[1617332701464,4.06940092,2008.9,2008.7,2.90695]
[1617332701865,2.90695,2008.8,2008.7,2.90695]
[1617332702271,6.97652625,2008.8,2008.7,2.90695]
[1617332708176,5.81240278,2008.8,2008.7,2.90695]
[1617332708376,2.90695,2008.8,2008.7,2.90695]
[1617332708776,5.81313473,2008.8,2008.7,2.90695]
[1617332708984,2.90618473,2008.8,2008.7,2.90695]
[1617332709185,2.03493635,2008.8,2008.7,2.90695]
[1617332709581,2.03480481,2008.9,2008.7,2.90695]
[1617332709980,2.03485001,2008.8,2008.7,2.90695]
[1617332710877,2.03488166,2008.9,2008.7,2.90695]
[1617332711879,1.16106921,2008.8,2008.7,2.90695]
[1617332714578,1.16106921,2008.8,2008.7,4.90695]
[1617332715879,1.16106921,2008.8,2008.7,2.90695]
[1617332716981,2.0347738,2009.0,2008.7,2.90695]
[1617332716982,2.90557571,2009.2,2008.7,2.90695]
[1617332717180,2.90561104,2009.3,2008.7,4.04435]
[1617332717380,2.90561104,2009.3,2008.7,6.04435]
[1617332717783,0.92875492,2008.9,2008.7,6.04435]
[1617332718581,5.492e-05,2008.9,2008.7,6.04435]
[1617332718781,6.97315513,2009.7,2008.7,6.04435]
[1617332718782,0.92964084,2008.8,2008.7,6.04435]
[1617332719589,2.91018278,2009.3,2008.7,4.04435]
[1617332719793,2.9106764,2009.0,2008.7,2.90695]
[1617332720192,2.90695,2009.1,2008.7,2.90695]
[1617332720193,2.91086403,2008.9,2008.7,2.90695]
[1617332720595,2.91091311,2008.8,2008.7,2.90695]
[1617332720795,4.08891311,2008.8,2008.7,2.90695]
[1617332721000,1.178,2008.8,2008.7,2.90695]
[1617332721189,5.25234667,2008.8,2008.7,2.90695]
[1617332722583,1.178,2008.8,2008.7,2.90695]
[1617332723584,5.25260008,2008.8,2008.7,2.90695]
[1617332723783,2.90695,2009.1,2009.0,19.50945935]
[1617332723983,2.90695,2009.1,2009.0,13.60620935]
[1617332725384,9.30848901,2009.1,2009.0,13.60620935]
[1617332726786,9.30848901,2009.1,2007.9,60.62571615]
[1617332726986,2.90695,2009.1,2007.9,1.29931615]
[1617332727186,2.03892825,2008.1,2007.9,1.29931615]
[1617332727386,3.11592825,2008.1,2007.9,1.29931615]
[1617332727986,3.11592825,2008.1,2008.0,2.90695]
[1617332728187,1.077,2008.1,2008.0,2.90695]
[1617332728588,3.11602625,2008.1,2008.0,2.90695]
[1617332729396,1.077,2008.1,2008.0,2.90695]
[1617332730196,9.33449617,2008.2,2008.0,2.90695]
[1617332730394,2.90695,2008.2,2008.0,2.90695]
[1617332730797,9.33272192,2008.2,2008.0,2.90695]
[1617332731199,2.90695,2008.2,2008.0,2.90695]
[1617332731397,6.42614746,2008.1,2008.0,2.90695]
[1617332731598,7.81924746,2008.1,2008.0,2.90695]
[1617332731798,1.3931,2008.1,2008.0,2.90695]
[1617332732899,2.90695,2008.2,2008.0,2.90695]
[1617332736001,6.42647208,2008.1,2008.0,2.90695]
[1617332737903,5.25792602,2008.1,2008.0,2.90695]
[1617332738501,5.25792602,2008.1,2008.0,0.41441647]
[1617332739110,5.25768151,2008.2,2008.0,0.41441647]
[1617332739308,5.25772771,2008.1,2008.0,0.41441647]
[1617332740314,8.16467771,2008.1,2008.0,0.41441647]
[1617332740505,2.90695,2008.1,2008.0,0.41441647]
[1617332741506,9.33295641,2008.1,2008.0,0.41441647]
[1617332741903,2.90695,2008.1,2008.0,0.41441647]
[1617332745709,5.25596872,2008.2,2008.0,0.41441647]
[1617332745910,4.08826788,2008.1,2008.0,0.41441647]
[1617332746508,6.58027489,2008.2,2008.0,0.41441647]
[1617332746708,2.04532184,2008.1,2008.0,0.41441647]
[1617332747110,5.41288162,2008.2,2008.0,0.41441647]
[1617332747509,2.92063003,2008.3,2008.0,0.41441647]
[1617332748510,4.08771496,2008.5,2008.0,0.41441647]
[1617332748710,4.0874932,2008.6,2008.0,0.41441647]
[1617332748912,5.26054769,2008.9,2008.3,64.2629]
[1617332749111,5.26054769,2008.9,2008.4,2.0]
[1617332749310,6.03595689,2009.1,2008.4,2.0]
[1617332749514,7.59661176,2009.7,2008.4,2.0]
[1617332750114,8.76373591,2010.3,2008.4,2.0]
[1617332750311,11.67068591,2010.3,2009.9,2.90695]
[1617332750511,11.67068591,2010.3,2009.9,4.12775]
[1617332750713,14.13202426,2010.0,2009.9,4.12775]
[1617332751112,13.5447,2010.0,2009.9,4.12775]
[1617332752917,13.5447,2010.0,2009.9,2.90695]
[1617332753219,12.5519,2010.0,2009.9,2.90695]
[1617332754021,11.5591,2010.0,2009.9,2.90695]
[1617332754221,10.5663,2010.0,2009.9,2.90695]
[1617332754422,9.5735,2010.0,2009.9,2.90695]
[1617332755525,2.90695,2010.3,2009.9,2.90695]
[1617332755728,2.90695,2010.3,2009.3,53.01685]
[1617332755927,2.90695,2010.3,2009.3,50.43285]
[1617332756326,1.295,2010.6,2010.1,2.90695]
[1617332756527,8.74940328,2011.2,2010.1,2.90695]
[1617332757327,8.74943021,2011.3,2010.1,2.90695]
[1617332757727,8.74943317,2011.2,2010.1,2.90695]
[1617332758227,7.75663317,2011.2,2010.1,2.90695]
[1617332758429,2.90695,2010.2,2010.1,2.90695]
[1617332759430,2.90695,2010.2,2009.3,50.43285]
[1617332759631,4.06195,2010.2,2009.3,50.43285]
[1617332759831,2.91754971,2009.5,2008.7,2.0]
[1617332760332,2.91754971,2009.5,2009.4,2.90695]
[1617332761132,2.90695,2009.6,2009.4,2.90695]
[1617332761133,8.15711955,2009.6,2009.4,2.90695]
[1617332762133,4.08399073,2009.5,2009.4,2.90695]
[1617332762933,6.99092559,2009.6,2009.4,2.90695]
[1617332763133,5.99812559,2009.6,2009.4,2.90695]
[1617332763333,2.91796553,2009.5,2009.4,2.90695]
[1617332764835,4.8319952,2009.6,2009.4,2.90695]
[1617332765436,2.91766307,2009.5,2009.4,2.90695]
[1617332765637,4.83179235,2009.6,2009.4,2.90695]
[1617332765836,12.0,2009.5,2009.4,2.90695]
[1617332766038,14.91787834,2009.5,2009.4,2.90695]
[1617332767138,12.0,2009.5,2009.4,2.90695]
[1617332768240,11.0072,2009.5,2009.4,2.90695]
[1617332773149,10.0144,2009.5,2009.4,2.90695]
[1617332778352,9.0216,2009.5,2009.4,2.90695]
[1617332778853,11.06435246,2009.5,2009.4,2.90695]
[1617332779253,9.0216,2009.5,2009.4,2.90695]
[1617332783357,8.0288,2009.5,2009.4,2.90695]
[1617332788264,7.036,2009.5,2009.4,2.90695]
[1617332788964,9.07824476,2009.5,2009.4,2.90695]
[1617332789364,7.036,2009.5,2009.4,2.90695]
[1617332789764,9.07828482,2009.5,2009.4,2.90695]
[1617332790164,7.036,2009.5,2009.4,4.44735]
[1617332790565,9.07824001,2009.5,2009.4,4.44735]
[1617332790966,7.036,2009.5,2009.4,4.44735]
[1617332791165,7.036,2009.5,2009.4,63.14835]
[1617332792866,7.036,2009.5,2009.4,4.44735]
[1617332793267,6.0432,2009.5,2009.4,4.44735]
[1617332794067,6.0432,2009.5,2009.4,2.90695]
[1617332797071,8.08511788,2009.5,2009.4,2.90695]
[1617332798271,7.09231788,2009.5,2009.4,2.90695]
[1617332798671,5.0504,2009.5,2009.4,2.90695]
[1617332800779,9.1330204,2009.5,2009.4,2.90695]
[1617332801878,5.0504,2009.5,2009.4,2.90695]
[1617332802578,6.3232,2009.5,2008.4,2.0]
[1617332802778,6.3232,2009.5,2008.5,2.90695]
[1617332803181,2.0429323,2008.7,2008.5,2.90695]
[1617332803380,3.5594323,2008.7,2008.5,2.90695]
[1617332803983,2.04309018,2008.6,2008.5,2.90695]
[1617332804586,2.91763959,2008.7,2008.5,2.90695]
[1617332804790,2.90695,2008.6,2008.5,2.90695]
[1617332807591,5.82479936,2008.6,2008.5,2.90695]
[1617332808790,2.90695,2008.6,2008.5,2.90695]
[1617332809189,6.99114223,2008.6,2008.5,2.90695]
[1617332809490,2.90695,2008.6,2008.5,2.90695]
[1617332810596,5.82340474,2008.6,2008.5,2.90695]
[1617332811992,2.90695,2008.6,2008.5,2.90695]
[1617332812593,5.82456397,2008.6,2008.5,2.90695]
[1617332817397,2.90695,2008.6,2008.5,2.90695]
[1617332819196,5.82452811,2008.6,2008.5,2.90695]
[1617332820597,2.90695,2008.6,2008.5,2.90695]
[1617332820798,6.99308292,2008.6,2008.5,2.90695]
[1617332821096,4.08613292,2008.6,2008.5,2.90695]
[1617332821497,4.0860949,2008.7,2008.5,2.90695]
[1617332822198,4.08610401,2008.6,2008.5,2.90695]
[1617332822397,5.08750401,2008.6,2008.5,2.90695]
[1617332822797,4.08610401,2008.6,2008.5,2.90695]
[1617332823797,5.07350401,2008.6,2008.5,2.90695]
[1617332825401,4.08610401,2008.6,2008.5,2.90695]
[1617332825608,5.41620401,2008.6,2008.5,2.90695]
[1617332826101,1.3301,2008.6,2008.5,2.90695]
[1617332826301,59.0954,2008.6,2008.0,6.183]
[1617332826502,60.0922,2008.6,2008.0,6.183]
[1617332826701,60.0922,2008.6,2007.9,1.29931615]
[1617332826702,2.35106213,2008.5,2007.9,1.29931615]
[1617332826903,2.90695,2008.0,2007.9,1.29931615]
[1617332827103,10.80167887,2008.0,2007.9,1.29931615]
[1617332827502,5.54625,2008.0,2007.9,1.29931615]
[1617332827902,11.96954271,2008.0,2007.9,1.29931615]
[1617332828702,5.54625,2008.0,2007.9,1.29931615]
[1617332829302,7.54625,2008.0,2007.4,0.9863]
[1617332829502,7.54625,2008.0,2006.6,60.3493]
[1617332829703,7.54625,2008.0,2006.6,2.584]
[1617332829704,5.25641522,2007.6,2006.6,2.584]
[1617332829902,2.04605842,2007.0,2006.6,2.584]
[1617332830102,3.03395842,2007.0,2005.9,16.5441]
[1617332830303,2.04605504,2006.9,2005.9,16.5441]
[1617332830905,2.04611239,2007.0,2005.9,16.5441]
[1617332831106,2.04611239,2007.0,2006.9,2.90695]
[1617332831304,3.03511239,2007.0,2006.9,3.89055]
[1617332831805,2.04611239,2007.0,2006.9,3.89055]
[1617332832006,7.00416103,2007.1,2006.9,3.89055]
[1617332832908,4.09746308,2007.0,2006.9,3.89055]
[1617332833309,4.09746308,2007.0,2006.9,2.90695]
[1617332833713,4.09740512,2007.1,2006.9,2.90695]
[1617332834813,5.26743741,2007.1,2006.9,2.90695]
[1617332835012,2.90695,2007.0,2006.9,2.90695]
[1617332835214,4.11305,2007.0,2006.9,2.90695]
[1617332837115,9.38079839,2007.0,2006.9,2.90695]
[1617332837515,4.11305,2007.0,2006.9,2.90695]
[1617332837914,9.38093295,2007.0,2006.9,2.90695]
[1617332838113,9.38093295,2007.0,2005.9,80.5131]
[1617332838315,4.11305,2007.0,2005.9,80.5131]
[1617332839018,1.2061,2007.0,2006.7,2.90695]
[1617332840318,2.0,2007.5,2006.7,2.90695]
[1617332841020,2.90695,2006.8,2006.7,2.90695]
[1617332841220,4.36045,2006.8,2006.7,2.90695]
[1617332844524,2.90695,2006.8,2006.7,2.90695]
[1617332848626,4.54635,2006.8,2006.7,2.90695]
[1617332853570,77.05375,2006.8,2006.7,2.90695]
[1617332853732,77.05375,2006.8,2005.9,7.773]
[1617332853942,77.05375,2006.8,2005.9,2.584]
[1617332854540,4.54635,2006.8,2005.9,2.584]
[1617332854771,4.54635,2006.8,2006.0,70.9399]
[1617332855167,2.90695,2006.8,2006.7,2.90695]
[1617332855746,2.90695,2006.8,2006.7,4.30475]
[1617332857549,2.90695,2006.8,2006.7,2.90695]
[1617332861941,2.90695,2006.8,2005.9,2.584]
[1617332863342,67.0646,2007.1,2006.5,2.90695]
[1617332865344,2.90695,2006.6,2006.5,2.90695]
[1617332865544,4.12965,2006.6,2006.5,2.90695]
[1617332866344,4.12965,2006.6,2005.9,2.584]
[1617332867246,1.2227,2006.6,2006.2,2.90695]
[1617332867646,67.0646,2007.1,2005.9,2.584]
[1617332869349,67.0646,2007.1,2006.4,2.90695]
[1617332869550,1.419,2007.1,2006.4,2.90695]
[1617332869750,2.03288691,2008.1,2006.4,68.42395]
[1617332870549,0.5880901,2008.1,2006.4,68.42395]
[1617332870950,79.2206,2008.2,2006.4,68.42395]
[1617332871349,13.7036,2008.2,2007.5,2.90695]
[1617332871751,15.73627783,2008.2,2007.5,2.90695]
[1617332871949,2.03247126,2008.1,2007.5,2.90695]
[1617332872551,13.7036,2008.2,2007.5,2.90695]
[1617332872751,15.7036,2008.2,2007.5,2.90695]
[1617332872952,15.7036,2008.2,2007.3,77.8831]
[1617332873151,16.8244,2008.2,2007.3,77.8831]
[1617332873351,2.90695,2007.4,2007.3,77.8831]
[1617332873552,2.90695,2007.4,2007.1,2.90695]
[1617332875055,2.90695,2007.4,2007.0,2.584]
[1617332876653,4.10335,2007.4,2007.0,2.584]
[1617332877453,2.90695,2007.1,2007.0,2.584]
[1617332879356,2.90695,2007.1,2006.5,2.90695]
[1617332881455,2.90695,2006.6,2006.3,64.8628]
[1617332883456,2.90695,2006.6,2006.5,2.90695]
[1617332884757,2.90695,2006.6,2005.9,2.584]
[1617332885358,56.0639,2006.8,2006.3,2.90695]
[1617332885761,1.579,2007.0,2006.3,2.90695]
[1617332887359,2.90695,2006.4,2005.9,2.584]
[1617332887559,4.54165,2006.4,2004.7,74.483]
[1617332888360,4.54165,2006.4,2004.8,2.0]
[1617332888560,4.54165,2006.4,2004.7,74.483]
[1617332889460,1.6347,2006.4,2005.7,2.90695]
[1617332890462,2.04146013,2006.2,2005.7,2.90695]
[1617332891462,2.90695,2005.8,2005.7,2.90695]
[1617332891663,4.17505,2005.8,2005.7,2.90695]
[1617332897171,4.17505,2005.8,2004.6,7.773]
[1617332897372,66.1581,2005.6,2004.6,7.773]
[1617332897573,66.1581,2005.6,2005.0,2.90695]
[1617332899576,2.90695,2005.1,2005.0,2.90695]
[1617332899775,3.96095,2005.1,2005.0,2.90695]
[1617332901576,6.00309673,2005.1,2005.0,2.90695]
[1617332902376,30.0,2004.9,2003.2,16.7315]
[1617332902577,32.0,2004.9,2003.2,2.584]
[1617332902777,2.04275054,2004.7,2003.2,2.584]
[1617332902976,2.04275054,2004.7,2002.1,2.0]
[1617332903176,2.04284962,2004.5,2002.1,2.0]
[1617332903377,2.0,2004.4,2002.1,2.0]
[1617332903578,2.90695,2004.1,2003.7,2.90695]
[1617332905577,2.04301271,2004.3,2004.0,62.90695]
[1617332905779,2.04301271,2004.3,2004.0,63.91005]
[1617332905980,3.50613705,2004.5,2004.0,63.91005]
[1617332905981,2.0428146,2004.5,2004.0,63.91005]
[1617332906179,2.91705766,2004.7,2004.0,63.91005]
[1617332906379,2.91700912,2004.9,2004.0,63.91005]
[1617332906579,2.91678275,2005.0,2004.1,68.5212]
[1617332906779,2.49699113,2004.4,2004.1,68.5212]
[1617332907179,2.49699113,2004.4,2004.0,63.91005]
[1617332907580,2.49699113,2004.4,2004.3,2.90695]
[1617332907980,2.49699113,2004.4,2004.0,60.0]
[1617332908181,1.5858,2004.4,2004.0,60.0]
[1617332909283,72.2276,2004.1,2004.0,60.0]
[1617332909682,72.2276,2004.1,2004.0,62.90695]
[1617332911584,2.90695,2004.2,2004.0,62.90695]
[1617332911784,72.6868,2005.5,2004.0,62.90695]
[1617332911984,74.6868,2005.5,2004.0,64.03405]
[1617332912185,72.6868,2005.5,2004.0,64.03405]
[1617332913586,72.6868,2005.5,2005.0,2.90695]
[1617332913790,14.6111,2005.6,2005.0,2.90695]
[1617332914389,14.6111,2005.6,2005.0,0.41060062]
[1617332915591,2.90695,2005.1,2005.0,0.41060062]
[1617332915791,14.6111,2005.6,2005.0,0.41060062]
[1617332917698,14.6111,2005.6,2005.5,2.90695]
[1617332917899,14.6111,2005.6,2005.5,4.15595]
[1617332919498,2.04025481,2006.8,2005.5,4.15595]
[1617332919698,2.04025481,2006.8,2006.3,2.90695]
[1617332919898,2.04025481,2006.8,2006.3,4.14655]
[1617332920099,16.33848559,2006.9,2006.3,4.14655]
[1617332920298,14.2983,2006.9,2006.3,4.14655]
[1617332920498,14.2983,2006.9,2006.3,1.2396]
[1617332921301,2.49431297,2006.6,2005.6,72.7606]
[1617332921701,2.49431297,2006.6,2006.2,2.90695]
[1617332922101,2.49431297,2006.6,2005.6,7.773]
[1617332922304,59.8474,2006.5,2004.7,16.611]
[1617332922902,61.8474,2006.5,2004.7,16.611]
[1617332923102,62.8817,2006.5,2004.7,16.611]
[1617332923302,62.8817,2006.5,2004.7,2.584]
[1617332923503,64.92337413,2006.5,2004.7,2.584]
[1617332923702,2.90695,2005.2,2004.9,2.90695]
[1617332925305,2.04192304,2006.2,2004.9,2.90695]
[1617332925705,2.90695,2006.2,2005.7,2.90695]
[1617332927112,2.90695,2006.2,2005.3,1.2048]
[1617332927705,2.90695,2006.2,2005.8,2.90695]
[1617332928913,2.49513449,2005.9,2005.8,2.90695]
[1617332929720,5.40208449,2005.9,2005.8,2.90695]
[1617332930511,2.90695,2005.9,2005.8,2.90695]
[1617332931112,2.90695,2005.9,2004.7,2.584]
[1617332931914,1.5951,2006.1,2004.7,2.584]
[1617332932312,31.5951,2006.1,2004.7,2.584]
[1617332932512,73.029,2005.5,2004.7,2.584]
[1617332932713,74.5359,2005.5,2004.0,60.0]
[1617332932912,2.0,2005.4,2004.0,60.0]
[1617332933512,82.8965,2004.6,2004.0,60.0]
[1617332933712,2.0,2004.5,2004.0,60.0]
[1617332933913,2.90695,2004.1,2004.0,60.0]
[1617332934112,4.41055,2004.1,2004.0,60.0]
[1617332935314,2.90695,2004.1,2004.0,60.0]
[1617332935913,2.90695,2004.1,2004.0,62.90695]
[1617332936313,1.6366,2004.6,2004.0,62.90695]
[1617332937913,2.90695,2004.1,2004.0,62.90695]
[1617332938113,4.15625,2004.1,2004.0,62.90695]
[1617332938914,4.15625,2004.1,2004.0,60.0]
[1617332940115,71.76815,2004.1,2004.0,60.0]
[1617332941119,4.15625,2004.1,2004.0,60.0]
[1617332941330,2.90695,2004.1,2004.0,60.0]
[1617332941718,57.6357,2005.2,2004.0,60.0]
[1617332941927,57.6357,2005.2,2004.6,2.90695]
[1617332942131,17.27647223,2005.8,2004.6,2.90695]
[1617332942132,2.03891916,2005.7,2004.6,4.12515]
[1617332942555,14.3647,2005.8,2004.6,4.12515]
[1617332943724,2.0,2005.7,2004.3,77.1954]
[1617332943923,2.0,2005.7,2004.0,62.584]
[1617332943924,2.90695,2004.4,2004.1,2.90695]
[1617332944124,2.90695,2004.4,2004.0,60.0]
[1617332945925,2.90695,2004.4,2004.3,2.90695]
[1617332946524,2.90695,2004.4,2004.3,4.50315]
[1617332947527,2.90695,2004.4,2004.3,2.90695]
[1617332947725,2.90695,2004.4,2004.0,60.0]
[1617332949929,1.4495,2004.7,2004.1,2.90695]
[1617332950131,79.57799852,2004.8,2004.1,2.90695]
[1617332950739,78.4152,2004.8,2004.1,2.90695]
[1617332950931,1.16257056,2005.0,2004.1,2.90695]
[1617332951350,1.16248639,2005.2,2004.1,2.90695]
[1617332951753,1.1623383,2005.3,2004.2,2.0]
[1617332951954,1.1623383,2005.3,2005.2,2.90695]
[1617332952142,2.90695,2005.7,2005.2,4.03625]
[1617332953131,2.90695,2005.7,2005.2,2.90695]
[1617332953531,2.90695,2005.7,2004.2,1.0898]
[1617332953935,2.90695,2005.0,2004.9,2.90695]
[1617332954133,2.90695,2005.0,2004.2,1.0898]
[1617332954333,2.90695,2005.0,2004.0,62.584]
[1617332954733,65.0601,2004.9,2004.0,62.584]
[1617332955733,2.90695,2005.0,2004.0,62.584]
[1617332955933,2.03728719,2005.4,2004.0,62.584]
[1617332955934,2.03728719,2005.4,2004.9,2.90695]
[1617332956133,2.03711573,2005.6,2004.9,4.24495]
[1617332956333,17.2736199,2005.8,2004.9,4.24495]
[1617332956534,14.3647,2005.8,2004.9,4.24495]
[1617332957333,76.76284638,2006.4,2004.9,4.24495]
[1617332957535,2.03613912,2006.5,2005.0,64.4608]
[1617332957734,2.03599089,2006.6,2005.0,64.4608]
[1617332957936,2.03599089,2006.6,2006.4,2.90695]
[1617332958136,2.0359288,2006.7,2006.4,4.25155]
[1617332958538,2.0,2006.8,2006.4,4.25155]
[1617332958736,17.32592501,2006.9,2006.4,4.25155]
[1617332958937,2.03582831,2006.8,2006.4,4.25155]
[1617332959336,14.4187,2006.9,2006.4,4.25155]
[1617332959936,14.4187,2006.9,2006.8,2.90695]
[1617332960136,14.4187,2006.9,2006.4,1.3446]
[1617332961337,14.4187,2006.9,2005.1,2.9974]
[1617332961537,14.4187,2006.9,2005.1,2.0]
[1617332961936,2.0,2006.8,2005.8,2.90695]
[1617332962138,2.03831726,2006.8,2005.8,2.90695]
[1617332962337,4.53227632,2006.8,2005.8,2.90695]
[1617332962537,2.49395906,2006.8,2005.8,2.90695]
[1617332963139,4.49395906,2006.8,2005.1,0.9946]
[1617332963339,2.49395906,2006.8,2005.1,0.9946]
[1617332964140,2.90695,2006.3,2006.1,2.90695]
[1617332965744,2.49395906,2006.8,2006.1,2.90695]
[1617332966144,2.49395906,2006.8,2006.5,2.90695]
[1617332967243,14.4187,2006.9,2006.5,2.90695]
[1617332968043,14.4187,2006.9,2006.3,1.0326]
[1617332968244,14.4187,2006.9,2006.3,2.0191]
[1617332968446,14.4187,2006.9,2006.3,1.0326]
[1617332969446,14.4187,2006.9,2006.3,2.0157]
[1617332969845,14.4187,2006.9,2006.3,1.0326]
[1617332970045,14.4187,2006.9,2006.8,2.90695]
[1617332971247,14.4187,2006.9,2006.3,1.0326]
[1617332971446,14.4187,2006.9,2006.2,57.6199]
[1617332971647,15.6572,2006.9,2005.7,1.0098]
[1617332972248,15.6572,2006.9,2006.8,2.90695]
[1617332972650,14.4187,2006.9,2006.8,2.90695]
[1617332973048,14.4187,2006.9,2006.0,1.2852]
[1617332974247,14.4187,2006.9,2006.8,2.90695]
[1617332974449,1.163908,2007.3,2006.8,2.90695]
[1617332974849,1.163908,2007.3,2005.6,66.5974]
[1617332975049,1.16391005,2007.2,2005.6,66.5974]
[1617332976049,1.16398806,2007.1,2005.6,66.5974]
[1617332976250,1.16398806,2007.1,2006.4,2.90695]
[1617332976452,1.16399602,2007.0,2006.4,2.90695]
[1617332977859,1.16494694,2006.9,2006.4,2.90695]
[1617332978159,2.90695,2006.6,2006.4,2.90695]
[1617332979761,3.94415,2006.6,2005.6,64.5974]
[1617332979961,3.94415,2006.6,2005.0,15.6036]
[1617332980161,79.8011,2006.6,2005.9,2.90695]
[1617332980760,79.8011,2006.6,2005.0,13.6036]
[1617332981163,80.96615394,2006.6,2005.0,13.6036]
[1617332981561,79.8011,2006.6,2005.0,13.6036]
[1617332981961,1.1654646,2006.5,2005.0,13.6036]
[1617332982162,2.90695,2006.1,2005.9,2.90695]
[1617332982361,4.54905,2006.1,2005.9,2.90695]
[1617332987766,4.54905,2006.1,2005.0,13.6036]
[1617332987967,4.54905,2006.1,2004.9,2.584]
[1617332988166,1.6421,2006.1,2005.6,2.90695]
[1617332988367,69.806,2006.3,2005.6,2.90695]
[1617332988566,1.16567196,2006.2,2004.9,2.584]
[1617332988766,3.16567196,2006.2,2004.9,2.584]
[1617332988969,1.16571887,2006.0,2004.9,2.584]
[1617332989167,2.32791887,2006.0,2004.9,2.584]
[1617332989367,1.1622,2006.0,2004.9,2.584]
[1617332990369,1.1622,2006.0,2005.3,2.90695]
[1617332992371,70.97076494,2006.3,2005.7,2.90695]
[1617332992571,69.806,2006.3,2005.7,2.90695]
[1617332992770,1.16475552,2006.4,2005.7,2.90695]
[1617332993172,1.16464552,2006.5,2005.7,2.90695]
[1617332993772,1.1652226,2006.2,2005.7,2.90695]
[1617332993973,1.16520712,2006.3,2005.7,2.90695]
[1617332994175,1.16516565,2006.4,2005.7,2.90695]
[1617332994373,2.49458264,2006.3,2006.2,2.90695]
[1617332994574,2.49458264,2006.3,2006.2,3.93445]
[1617332996273,1.16515403,2006.4,2006.2,3.93445]
[1617332999077,1.16515403,2006.4,2006.2,2.90695]
[1617332999480,1.16521357,2006.3,2006.2,2.90695]
[1617333000079,1.16521357,2006.3,2005.6,71.1562]
[1617333000280,2.90695,2006.2,2005.8,2.90695]
[1617333000579,4.07225872,2006.2,2005.8,2.90695]
[1617333000879,1.16580331,2006.1,2005.8,2.90695]
[1617333002081,4.07273718,2006.2,2005.8,2.90695]
[1617333002281,1.16578718,2006.2,2006.1,2.90695]
[1617333002481,1.16577065,2006.3,2006.1,2.90695]
[1617333004085,1.16577065,2006.3,2005.6,71.1562]
[1617333004285,4.07267968,2006.2,2006.0,2.90695]
[1617333004986,2.04424029,2006.1,2006.0,2.90695]
[1617333005385,2.04424029,2006.1,2005.6,71.1562]
[1617333005987,1.16652926,2005.8,2005.6,71.1562]
[1617333006289,1.16649611,2005.9,2005.7,2.90695]
[1617333006487,1.16649611,2005.9,2005.7,4.09955]
[1617333006689,1.16649453,2006.0,2005.7,4.09955]
[1617333008289,1.16647101,2005.8,2005.7,4.09955]
[1617333008889,2.91909369,2006.2,2006.0,26.78928855]
[1617333010290,2.91915696,2006.1,2006.0,26.78928855]
[1617333012494,2.91730155,2006.2,2006.0,29.69623855]
[1617333013496,2.91726428,2006.3,2006.0,29.69623855]
[1617333013796,2.91717819,2006.2,2006.0,29.69623855]
[1617333014296,2.91709302,2006.3,2006.0,29.69623855]
[1617333014497,2.91697168,2006.4,2006.0,29.69623855]
[1617333014900,2.91697168,2006.4,2006.0,30.85013855]
[1617333015305,2.91681223,2006.6,2006.0,30.85013855]
[1617333015497,2.91681223,2006.6,2006.4,68.0341]
[1617333015697,2.91668405,2006.7,2006.4,68.0341]
[1617333016499,2.91668405,2006.7,2006.6,2.90695]